Cogmind - Beta 11.1 @@@ ROGUE MODE // 2022.05.20 @ 21:16:37 Player: Smie Result: Destroyed by P-70 Sage with High-powered Shock Rifle Performance ------------- Evolutions (5) 2500 Regions Visited (12) 2400 Robots Destroyed (84) 420 Value Destroyed (3447) 3447 Prototype IDs (36) 720 Alien Tech Used (0) 0 Bonus (600) 600 TOTAL SCORE: 10087 Bonus ------- Aligned with FarCom 300 Met Data Miner 300 Cogmind --------- Core Integrity 0/1000 Matter 185/300 Energy 84/100 System Corruption 7% Temperature Cool (0) Movement Core (50) Location -5/Factory Parts ------- > --- POWER (2) -------- (None) > --- PROPULSION (4) --- (None) > --- UTILITY (7) ------ Terrain Scan Processor > --- WEAPON (4) ------- (None) > --- INVENTORY (5) ---- Cold Fusion Reactor Antimatter Reactor Visual Processing Unit Terrain Scanner Peak State ------------ > --- POWER ------------ Light Nuclear Core Light Angular Momentum Engine > --- PROPULSION ------- Carbon-fiber Leg Carbon-fiber Leg Carbon-fiber Leg Flexi-carbon Leg > --- UTILITY ---------- High-capacity Storage Unit Structural Scanner Signal Interpreter Active Sensor Suite Force Field > --- WEAPON ----------- Autogun XL Autogun Subcomponent XL Autogun Subcomponent XL Autogun Subcomponent > --- INVENTORY -------- Cold Fusion Reactor Antimatter Reactor Light Treads Armored Treads Heat Sink Improved Heat Sink Improved Heat Sink High-capacity Matter Pod Visual Processing Unit Improved Signal Interpreter Terrain Scanner Advanced Terrain Scan Processor Targeting Computer Improved Kinecellerator Light Armor Plating Powered Armor Tractor Beam Gauss Cannon Magnetic Acceleration Cannon Improved Proton Missile Launcher [Rating: 83] Favorites ----------- Power Micro Nuclear Core Engine Improved Ion Engine Power Core Micro Nuclear Core Propulsion Armored Treads Treads Armored Treads Leg Carbon-fiber Leg Wheel Wheel Utility High-capacity Storage Unit Device Improved Heat Sink Storage High-capacity Storage Unit Processor Signal Interpreter Protection Light Armor Plating Weapon XL Autogun Subcomponent Energy Gun Medium Laser Ballistic Gun XL Autogun Subcomponent Ballistic Cannon Gauss Cannon Launcher Improved Proton Missile Launcher Slashing Weapon Makeshift Sword Build | -11 -10 -10 -10 -9 -8 -7 -7 -7 -7 -6 -6 -5 ------- Run | Scr Mat Min Exi Min Mat Fac Low Low Dat Pro Fac Fac Slots Evolved 10 | . . . . . 4 2 . . . . 2 2 Power 1 | . . . . . . . . . . . . 1 Propulsion 2 | . . . . . 1 1 . . . . . . Utility 5 | . . . . . 1 1 . . . . 2 1 Weapon 2 | . . . . . 2 . . . . . . . Parts Attached 69 | 6 5 . 6 2 13 2 3 6 . 4 11 11 Power 7 | 1 1 . . . 2 . . 1 . . 1 1 Engine 5 | 1 1 . . . 2 . . . . . . 1 Core 2 | . . . . . . . . 1 . . 1 . Reactor . | . . . . . . . . . . . . . Propulsion 26 | 2 . . 3 1 4 1 2 1 . 2 7 3 Treads 16 | 2 . . 1 1 4 1 2 1 . 2 2 . Leg 8 | . . . . . . . . . . . 5 3 Wheel 2 | . . . 2 . . . . . . . . . Hover . | . . . . . . . . . . . . . Flight . | . . . . . . . . . . . . . Utility 19 | 1 2 . 3 . 5 1 1 . . 1 2 3 Device 10 | . . . . . 3 1 1 . . 1 2 2 Storage 5 | 1 1 . 2 . 1 . . . . . . . Processor 2 | . . . . . 1 . . . . . . 1 Hackware . | . . . . . . . . . . . . . Protection 2 | . 1 . 1 . . . . . . . . . Artifact . | . . . . . . . . . . . . . Weapon 17 | 2 2 . . 1 2 . . 4 . 1 1 4 Energy Gun 1 | 1 . . . . . . . . . . . . Energy Cannon . | . . . . . . . . . . . . . Ballistic Gun 12 | 1 2 . . . 2 . . 4 . 1 1 1 Ballistic Cannon 2 | . . . . . . . . . . . . 2 Launcher 1 | . . . . . . . . . . . . 1 Special Weapon . | . . . . . . . . . . . . . Impact Weapon . | . . . . . . . . . . . . . Slashing Weapon 1 | . . . . 1 . . . . . . . . Piercing Weapon . | . . . . . . . . . . . . . Special Melee Weapon . | . . . . . . . . . . . . . Unidentified Prototypes 2 | . . . . . . . . 1 . . 1 . Parts Lost 32 | . . . . . 8 . . . . 3 3 18 Power 3 | . . . . . 1 . . . . . . 2 Propulsion 12 | . . . . . 3 . . . . 1 3 5 Utility 6 | . . . . . 1 . . . . 1 . 4 Weapon 11 | . . . . . 3 . . . . 1 . 7 Highest Loss Streak 15 | . . . . . 8 . . . . 1 3 15 To Critical Strikes 1 | . . . . . . . . . . . . 1 Average Slot Usage (%) 84 | . 94 100 100 97 60 76 76 88 100 95 79 79 Engine 5 | . 11 14 14 14 1 7 7 5 . . . 4 Core 2 | . . . . . . . . 1 7 7 6 4 Treads 22 | . 28 28 21 25 24 30 30 30 30 28 8 . Leg 3 | . . . . . . . . . . . 10 20 Device 10 | . . . . . 13 15 15 15 15 12 13 15 Storage 8 | . 14 14 14 14 9 7 7 7 7 7 6 4 Processor 4 | . . . . . . 7 7 7 7 7 6 4 Protection 3 | . 10 14 14 14 1 . . . . . . . Ballistic Gun 19 | . 18 28 28 17 9 7 7 18 30 30 26 17 Naked Turns 26 | . . . . . . . . . . . . 26 Heaviest Build 87 | 13 21 20 50 21 65 66 66 66 62 62 63 87 Greatest Support 88 | 40 40 40 40 40 60 80 80 88 88 88 88 70 Greatest Overweight (x) 8 | . . . 1 1 8 . . . . . 3 1 Average Overweight (x) . | . . . . . . . . . . . 1 . Largest Inventory Capacity 20 | 8 10 10 20 10 20 20 20 20 20 20 20 20 Average Capacity 17 | 7 9 10 10 10 17 20 20 20 20 20 20 18 Most Carried 20 | 4 10 10 10 10 20 18 20 20 20 20 20 20 Average Carried 16 | 2 8 10 9 9 14 17 19 19 20 19 19 18 Final Capacity 20 | 8 10 10 10 10 20 20 20 20 20 20 20 5 Final Carried 20 | 4 10 10 10 10 19 18 20 20 20 19 20 4 Class Distribution -------------------- 41% | Scavenger-Skirmisher 31% | Scavenger-Gunner 26% | Mutant Dominant Class ---------------- Mutant | -10/Materials Mutant | -10/Mines Mutant | -10/Exiles Mutant | -9/Mines Scavenger-Skirmisher | -8/Materials Scavenger-Skirmisher | -7/Factory Scavenger-Skirmisher | -7/Lower Caves Scavenger-Gunner | -7/Lower Caves Scavenger-Gunner | -7/Data Miner Scavenger-Gunner | -6/Proximity Caves Scavenger-Skirmisher | -6/Factory Scavenger-Skirmisher | -5/Factory Resources | -11 -10 -10 -10 -9 -8 -7 -7 -7 -7 -6 -6 -5 ----------- Run | Scr Mat Min Exi Min Mat Fac Low Low Dat Pro Fac Fac Matter Collected 2783 | 173 243 85 . 134 474 . 220 279 . 506 539 130 Remotely 770 | . . . . . 440 . . . . 330 . . Salvage Created 3662 | . 259 85 . . 674 . 225 527 . 817 779 296 Parts 197 | . 15 1 . . 50 . 12 25 . 33 42 19 Haulers Intercepted 3 | . 1 . . . 1 . . . . . 1 . Recyclers Shooed 2 | . . . . . . . . . . . 2 . Parts Field Recycled . | . . . . . . . . . . . . . Retrieved Matter . | . . . . . . . . . . . . . Parts Self-Destructed 69 | . . . . . . . 12 24 . 33 . . Prevented . | . . . . . . . . . . . . . Kills | -11 -10 -10 -10 -9 -8 -7 -7 -7 -7 -6 -6 -5 ------- Run | Scr Mat Min Exi Min Mat Fac Low Low Dat Pro Fac Fac Combat Hostiles Destroyed 76 | . 6 2 . . 11 . 7 10 . 19 14 7 Melee 1 | . . . . . 1 . . . . . . . Guns 69 | . 6 2 . . 10 . 7 10 . 19 14 1 Cannons 5 | . . . . . . . . . . . . 5 AOE 1 | . . . . . . . . . . . . 1 Classes Destroyed 13 | . 4 . . . 5 . . 1 . 1 1 1 Builder 1 | . . . . . 1 . . . . . . . Tunneler 1 | . . . . . . . . . . . . 1 Hauler 3 | . 1 . . . 1 . . . . . 1 . Recycler 1 | . 1 . . . . . . . . . . . Watcher 2 | . . . . . 2 . . . . . . . Swarmer 25 | . 3 . . . . . 6 . . 11 4 1 Grunt 28 | . 3 2 . . 4 . . 5 . 6 5 3 Brawler 1 | . . . . . . . . . . . 1 . Sentry 10 | . . . . . 4 . 1 2 . 1 2 . Hunter 3 | . . . . . 2 . . . . . . 1 Programmer 7 | . . . . . . . . 3 . . 2 2 Heavy 1 | . . . . . 1 . . . . . . . Behemoth 1 | . . . . . . . . . . 1 . . Best Kill Streak 9 | . 5 2 . . 3 . 7 5 . 9 5 6 Combat Bots Only 9 | . 3 2 . . 3 . 7 5 . 9 5 5 Max Kills in Single Turn 2 | . 1 1 . . 1 . 1 2 . 2 1 2 Gunslinging 1 | . . . . . . . . 1 . . . . Exploded 1 | . . . . . . . . . . . . 1 Melee 1 | . . . . . 1 . . . . . . . Uniques/NPCs Destroyed . | . . . . . . . . . . . . . Combat | -11 -10 -10 -10 -9 -8 -7 -7 -7 -7 -6 -6 -5 -------- Run | Scr Mat Min Exi Min Mat Fac Low Low Dat Pro Fac Fac Damage Taken 5980 | . 334 101 . . 767 . 442 351 . 1020 623 2342 Core 1302 | . 89 11 . . 15 . 66 14 . 34 69 1004 Absorbed by Shields 115 | . . . . . . . . . . . . 115 Regen/Repaired (Parts) 274 | . . . . . . . . . . . 274 . Core Remaining (%) 86 | 100 . . . 60 97 . . . . 83 91 . Volleys Fired 196 | . 27 7 . . 34 . 14 24 . 41 36 13 Largest 4 | . 2 2 . . 2 . 1 4 . 4 4 4 Hottest 144 | . 70 40 . . 60 . 60 80 . 83 83 144 Shots Fired 535 | . 54 14 . . 40 . 14 59 . 164 144 46 Gun 510 | . 54 14 . . 40 . 14 59 . 164 144 21 Cannon 25 | . . . . . . . . . . . . 25 Launcher . | . . . . . . . . . . . . . Special . | . . . . . . . . . . . . . Kinetic 512 | . 31 14 . . 40 . 14 59 . 164 144 46 Thermal 23 | . 23 . . . . . . . . . . . Explosive . | . . . . . . . . . . . . . Electromagnetic . | . . . . . . . . . . . . . Robot Hit Streak 21 | . 11 4 . . 21 . 5 9 . 15 15 7 Robot Miss Streak 7 | . 3 1 . . 4 . 7 4 . 6 3 6 Penetration Max 1 | . . . . . . . . . . . . 1 Secondary Targets 8 | . 1 . . . . . . 1 . 4 2 . Max Gunslinging Chain 1 | . 1 . . . . . . 1 . 1 1 . Shots Hit Robots 335 | . 32 9 . . 36 . 8 47 . 96 86 21 Core Hits 169 | . 17 5 . . 26 . 8 20 . 40 39 14 Critical Kills 2 | . . 1 . . . . . . . 1 . . Critical Parts Destroyed 2 | . . . . . . . . . . . . 2 Critical Strikes 5 | . . 1 . . . . . . . 1 . 3 Destroy 4 | . . 1 . . . . . . . 1 . 2 Blast 1 | . . . . . . . . . . . . 1 Melee Attacks 2 | . . . . . 2 . . . . . . . Impact . | . . . . . . . . . . . . . Slashing 2 | . . . . . 2 . . . . . . . Piercing . | . . . . . . . . . . . . . Sneak Attacks . | . . . . . . . . . . . . . Combat Hostiles . | . . . . . . . . . . . . . Follow-up Attacks . | . . . . . . . . . . . . . Damage Inflicted 8133 | . 319 77 . . 1172 . 371 1594 . 2002 1681 917 Guns 7360 | . 319 77 . . 1097 . 371 1594 . 2002 1681 219 Cannons 364 | . . . . . . . . . . . . 364 Explosions 334 | . . . . . . . . . . . . 334 Melee 75 | . . . . . 75 . . . . . . . Ramming . | . . . . . . . . . . . . . Kinetic 7539 | . 134 77 . . 1097 . 371 1594 . 2002 1681 583 Thermal 519 | . 185 . . . . . . . . . . 334 Explosive . | . . . . . . . . . . . . . Electromagnetic . | . . . . . . . . . . . . . Impact . | . . . . . . . . . . . . . Slashing 75 | . . . . . 75 . . . . . . . Piercing . | . . . . . . . . . . . . . Highest Corruption 6 | . . . . . . . . 1 1 1 . 6 Average Corruption 1 | . . . . . . . . 1 1 1 . 4 Corruption Purged . | . . . . . . . . . . . . . Corruption Blocked . | . . . . . . . . . . . . . Effects 13 | . . . . . . . . 5 1 6 . 1 Message Errors 2 | . . . . . . . . . . 2 . . Matter Fused 3 | . . . . . . . . 1 1 1 . . Heat Flow Errors 1 | . . . . . . . . 1 . . . . Energy Discharges 3 | . . . . . . . . 1 . 2 . . Data Loss (minor) 1 | . . . . . . . . 1 . . . . Data Loss (major) 1 | . . . . . . . . . . 1 . . Alerts 1 | . . . . . . . . . . . . 1 Weapon Failures 1 | . . . . . . . . 1 . . . . Overload Shots . | . . . . . . . . . . . . . Overflow Damage 60 | . . . . . . . . . . . . 60 Projectiles . | . . . . . . . . . . . . . Explosions 60 | . . . . . . . . . . . . 60 Melee . | . . . . . . . . . . . . . Knockbacks 3 | . . . . . . . . . . . . 3 Impact . | . . . . . . . . . . . . . Kinetic 3 | . . . . . . . . . . . . 3 Secondary . | . . . . . . . . . . . . . Self-Inflicted Damage . | . . . . . . . . . . . . . Shots . | . . . . . . . . . . . . . Rammed . | . . . . . . . . . . . . . Targets Rammed . | . . . . . . . . . . . . . Kicked . | . . . . . . . . . . . . . Crushed . | . . . . . . . . . . . . . Highest Temperature 333 | . 261 38 . . 183 . 333 220 . 259 82 256 Average Temperature 87 | . 86 19 . . 47 . 136 71 . 135 29 113 Received Heat Transfer 1060 | . 138 57 . . 198 . 48 147 . 219 174 79 Effects 3 | . 2 . . . . . . . . 1 . . Energy Bleed 1 | . . . . . . . . . . 1 . . Interference 2 | . 2 . . . . . . . . . . . Siege Activations . | . . . . . . . . . . . . . Robots Corrupted . | . . . . . . . . . . . . . Combat Hostiles . | . . . . . . . . . . . . . Parts Fried . | . . . . . . . . . . . . . Impact Corruptions . | . . . . . . . . . . . . . Robots Melted . | . . . . . . . . . . . . . Combat Hostiles . | . . . . . . . . . . . . . Parts Melted 2 | . 2 . . . . . . . . . . . Heat Transferred 755 | . 555 . . . . . . . . . . 200 Parts Sabotaged . | . . . . . . . . . . . . . Parts Stolen . | . . . . . . . . . . . . . Parts Stripped . | . . . . . . . . . . . . . Power Chain Reactions . | . . . . . . . . . . . . . Missiles Intercepted . | . . . . . . . . . . . . . Alert | -11 -10 -10 -10 -9 -8 -7 -7 -7 -7 -6 -6 -5 ------- Run | Scr Mat Min Exi Min Mat Fac Low Low Dat Pro Fac Fac Peak Influence 395 | . 255 77 . . 226 100 . . . . 395 325 Initial 144 | . . 27 . . . 100 . . . . 88 144 Average 132 | . 137 56 . . 131 100 . . . . 188 161 Maximum Alert Level 1 | . 1 . . . 1 . . . . . 1 1 Low Security (%) 74 | 100 55 100 . 100 81 100 . . . . 56 85 Level 1 25 | . 44 . . . 18 . . . . . 43 14 Level 2 . | . . . . . . . . . . . . . Level 3 . | . . . . . . . . . . . . . Level 4 . | . . . . . . . . . . . . . Level 5 . | . . . . . . . . . . . . . High Security . | . . . . . . . . . . . . . Max Security . | . . . . . . . . . . . . . Squads Dispatched 13 | . 1 . . . 4 . . . . . 4 4 Investigation 3 | . . . . . 1 . . . . . 1 1 Extermination 3 | . . . . . . . . . . . 2 1 Reinforcement 7 | . 1 . . . 3 . . . . . 1 2 Assault . | . . . . . . . . . . . . . Garrison . | . . . . . . . . . . . . . Intercept . | . . . . . . . . . . . . . Searches Triggered . | . . . . . . . . . . . . . Data Miner Redirects 2 | . . . . . . . . . . . 1 1 Construction Impeded 1 | . . . . . 1 . . . . . . . Haulers Reinforced 3 | . . . . . . . . . . . 1 2 Active Scanning Responses 2 | . . . . . . . . . . . 1 1 Cargo Convoy Interrupts . | . . . . . . . . . . . . . Stealth | -11 -10 -10 -10 -9 -8 -7 -7 -7 -7 -6 -6 -5 --------- Run | Scr Mat Min Exi Min Mat Fac Low Low Dat Pro Fac Fac Distress Signals 5 | . 2 . . . 1 . . . . . 1 1 Communications Jammed . | . . . . . . . . . . . . . Distress Signals . | . . . . . . . . . . . . . Times Spotted 104 | . 14 2 . . 16 . 7 10 . 19 15 21 Peak Tracking Total 15 | . 5 2 . . 5 . 7 5 . 9 5 15 Tactical Retreats 4 | . 1 . . . . . . . . . 2 1 Traps | -11 -10 -10 -10 -9 -8 -7 -7 -7 -7 -6 -6 -5 ------- Run | Scr Mat Min Exi Min Mat Fac Low Low Dat Pro Fac Fac Traps Triggered 3 | . 2 . . . 1 . . . . . . . Indirectly . | . . . . . . . . . . . . . Trap Hack Attempts . | . . . . . . . . . . . . . Triggered . | . . . . . . . . . . . . . Disarmed . | . . . . . . . . . . . . . Reprogrammed . | . . . . . . . . . . . . . Reused . | . . . . . . . . . . . . . Traps Extracted . | . . . . . . . . . . . . . Installed . | . . . . . . . . . . . . . Triggered . | . . . . . . . . . . . . . Machines | -11 -10 -10 -10 -9 -8 -7 -7 -7 -7 -6 -6 -5 ---------- Run | Scr Mat Min Exi Min Mat Fac Low Low Dat Pro Fac Fac Machines Disabled 10 | . . . . . 3 . . . . 1 . 6 Max in Single Turn 6 | . . . . . 2 . . . . 1 . 6 Machines Sabotaged . | . . . . . . . . . . . . . Garrisons Compromised . | . . . . . . . . . . . . . Overloaded Fab Kills . | . . . . . . . . . . . . . Hacking | -11 -10 -10 -10 -9 -8 -7 -7 -7 -7 -6 -6 -5 --------- Run | Scr Mat Min Exi Min Mat Fac Low Low Dat Pro Fac Fac Machines Accessed 25 | . 3 . 5 1 3 . 1 2 4 1 5 . Terminals 11 | . 3 . . . 3 . 1 . . 1 3 . Fabricators 1 | . . . . . . . . . . . 1 . Repair Stations 1 | . . . . . . . . . . . 1 . Recycling Units . | . . . . . . . . . . . . . Scanalyzers . | . . . . . . . . . . . . . Garrison Access . | . . . . . . . . . . . . . Total Hacks 111 | . 6 . 50 1 7 . 1 6 28 5 7 . Successful 101 | . 3 . 50 1 4 . 1 6 28 5 3 . Failed 10 | . 3 . . . 3 . . . . . 4 . Catastrophic 2 | . . . . . 1 . . . . . 1 . Database Lockouts . | . . . . . . . . . . . . . Manual 17 | . 6 . 1 . 7 . . . . . 3 . Terminals 22 | . 6 . . . 7 . 1 . . 5 3 . Fabricators 1 | . . . . . . . . . . . 1 . Repair Stations 3 | . . . . . . . . . . . 3 . Recycling Units . | . . . . . . . . . . . . . Scanalyzers . | . . . . . . . . . . . . . Garrison Access . | . . . . . . . . . . . . . Terminal Hacks 94 | . 1 . 50 1 2 . 1 6 28 5 . . Record 71 | . . . 49 . . . 1 5 11 5 . . Part Schematic 9 | . . . . . . . . . 9 . . . Robot Schematic 5 | . . . . . . . . . 5 . . . Prototype ID Bank 3 | . . . . . . . . . 3 . . . Open Door 2 | . . . . 1 . . . 1 . . . . Branch Access Points 2 | . 1 . . . 1 . . . . . . . Recall Investigation 1 | . . . . . 1 . . . . . . . EX-Prototype ID Bank 1 | . . . 1 . . . . . . . . . Fabricator Hacks 1 | . . . . . . . . . . . 1 . Network Status 1 | . . . . . . . . . . . 1 . Repair Station Hacks 2 | . . . . . . . . . . . 2 . Scan Component 1 | . . . . . . . . . . . 1 . Repair 1 | . . . . . . . . . . . 1 . Recycling Unit Hacks . | . . . . . . . . . . . . . Scanalyzer . | . . . . . . . . . . . . . Garrison Access Hacks . | . . . . . . . . . . . . . Unauthorized Hacks 4 | . 2 . . . 2 . . . . . . . Terminals 4 | . 2 . . . 2 . . . . . . . Assimilate 1 | . 1 . . . . . . . . . . . Botnet 3 | . 1 . . . 2 . . . . . . . Fabricators . | . . . . . . . . . . . . . Repair Stations . | . . . . . . . . . . . . . Recycling Units . | . . . . . . . . . . . . . Scanalyzers . | . . . . . . . . . . . . . Garrison Access . | . . . . . . . . . . . . . Data Cores Recovered . | . . . . . . . . . . . . . Used . | . . . . . . . . . . . . . Hacking Detections 8 | . 1 . . . 2 . . . . 1 4 . Full Trace Events . | . . . . . . . . . . . . . Feedback Events . | . . . . . . . . . . . . . Feedback Blocked . | . . . . . . . . . . . . . Robot Schematics Acquired 5 | . . . . . . . . . 5 . . . Robots Built . | . . . . . . . . . . . . . Authchips . | . . . . . . . . . . . . . Time . | . . . . . . . . . . . . . Total Robot Build Rating . | . . . . . . . . . . . . . Part Schematics Acquired 9 | . . . . . . . . . 9 . . . Parts Built . | . . . . . . . . . . . . . Authchips . | . . . . . . . . . . . . . Time . | . . . . . . . . . . . . . Total Part Build Rating . | . . . . . . . . . . . . . Parts Repaired 1 | . . . . . . . . . . . 1 . Time 19 | . . . . . . . . . . . 19 . Parts Recycled . | . . . . . . . . . . . . . Recycled Matter . | . . . . . . . . . . . . . Retrieved Matter . | . . . . . . . . . . . . . Retrieved Components . | . . . . . . . . . . . . . Parts Scanalyzed . | . . . . . . . . . . . . . Part Schematics Acquired . | . . . . . . . . . . . . . Parts Damaged . | . . . . . . . . . . . . . Bothacking | -11 -10 -10 -10 -9 -8 -7 -7 -7 -7 -6 -6 -5 ------------ Run | Scr Mat Min Exi Min Mat Fac Low Low Dat Pro Fac Fac Used RIF Installer . | . . . . . . . . . . . . . Robots Hacked . | . . . . . . . . . . . . . Non-combat . | . . . . . . . . . . . . . Combat . | . . . . . . . . . . . . . Robot Hacks Applied . | . . . . . . . . . . . . . Relay Couplers Released . | . . . . . . . . . . . . . Fabnet Peak Effective % . | . . . . . . . . . . . . . Robots Rewired . | . . . . . . . . . . . . . Allies Hacked . | . . . . . . . . . . . . . Hacks Repelled . | . . . . . . . . . . . . . Allies | -11 -10 -10 -10 -9 -8 -7 -7 -7 -7 -6 -6 -5 -------- Run | Scr Mat Min Exi Min Mat Fac Low Low Dat Pro Fac Fac Total Allies 2 | . 1 . . . . . . . . 1 . . Largest Group 1 | . 1 1 1 1 1 . . . . 1 . . Highest-Rated Group 96 | . 10 10 10 10 10 . . . . 96 . . Highest-Rated Ally 96 | . 10 10 10 10 10 . . . . 96 . . Total Orders . | . . . . . . . . . . . . . Ally Attacks 7 | . . . . . . . . . . 7 . . Total Damage 263 | . . . . . . . . . . 263 . . Kills . | . . . . . . . . . . . . . Allies Corrupted . | . . . . . . . . . . . . . Allies Melted 1 | . . . . . . . . . . 1 . . Intel | -11 -10 -10 -10 -9 -8 -7 -7 -7 -7 -6 -6 -5 ------- Run | Scr Mat Min Exi Min Mat Fac Low Low Dat Pro Fac Fac Robot Analysis Total . | . . . . . . . . . . . . . Derelict Logs Recovered 4 | . . . . . . . 2 1 . 1 . . Drone Launches . | . . . . . . . . . . . . . Drone Recoveries . | . . . . . . . . . . . . . Exploration | -11 -10 -10 -10 -9 -8 -7 -7 -7 -7 -6 -6 -5 ------------- Run | Scr Mat Min Exi Min Mat Fac Low Low Dat Pro Fac Fac Turns Passed 6560 | 80 455 59 556 405 672 177 762 850 126 872 1048 498 Spaces Moved 3468 | 44 223 25 348 254 321 106 438 475 76 470 410 278 Core 74 | 2 . . . . 5 . . . . . . 67 Treads 2890 | 42 223 25 321 247 316 106 438 475 76 470 151 . Legs 470 | . . . . . . . . . . . 259 211 Wheels 34 | . . . 27 7 . . . . . . . . Hover . | . . . . . . . . . . . . . Flight . | . . . . . . . . . . . . . Fastest Speed 50 | 50 160 160 95 95 160 165 165 167 167 167 120 50 Average Speed 170 | 155 160 160 155 158 172 165 165 167 167 167 221 156 Slowest Speed 450 | 160 160 160 240 160 450 165 167 167 167 170 410 190 Overloaded Moves . | . . . . . . . . . . . . . Propulsion Burnouts . | . . . . . . . . . . . . . Robots Hopped . | . . . . . . . . . . . . . Cave-ins Triggered . | . . . . . . . . . . . . . Exploration Rate (%) 37 | 4 42 10 71 54 36 3 57 68 68 56 13 11 Regions Visited 12 Branch Regions 7 Pre-discovered Areas 4 | . . . 1 . . . 1 . 1 1 . . Known Exits Taken 8 | . 1 . . . 1 1 1 1 1 1 1 . Unknown Exits Taken 4 | 1 . 1 1 1 . . . . . . . . Scrap Searched 9 | . . . . 1 . . 4 3 . 1 . . Spaces Dug 1 | . . . . . . . 1 . . . . . Terrain Destroyed 67 | . . . . . 25 . 4 3 . . . 35 Melee . | . . . . . . . . . . . . . Projectile 37 | . . . . . 25 . 4 3 . . . 5 AOE 30 | . . . . . . . . . . . . 30 Terrain Rammed . | . . . . . . . . . . . . . Walls Destroyed . | . . . . . . . . . . . . . Machines Disabled . | . . . . . . . . . . . . . Actions | -11 -10 -10 -10 -9 -8 -7 -7 -7 -7 -6 -6 -5 --------- Run | Scr Mat Min Exi Min Mat Fac Low Low Dat Pro Fac Fac Total 3955 | 53 275 33 363 257 425 108 477 526 75 525 518 320 Wait 128 | . 5 2 2 . 35 . 17 13 . 3 46 5 Move 3456 | 43 222 24 347 253 320 105 437 474 75 469 409 278 Hop . | . . . . . . . . . . . . . Pick Up 57 | 4 10 . 2 1 16 1 3 3 . 4 6 7 Fast Attach 29 | 6 1 . . . 7 . . 5 . 1 8 1 Attach 17 | . 1 . . 1 4 2 . . . 2 1 6 Detach 3 | . 1 . . . 1 . . . . . 1 . Swap 23 | . 3 . 6 1 2 . 3 1 . 1 2 4 Drop 43 | . 5 . 6 1 4 . 3 5 . 4 9 6 Fire 196 | . 27 7 . . 34 . 14 24 . 41 36 13 Melee 2 | . . . . . 2 . . . . . . . Ram . | . . . . . . . . . . . . . Kick . | . . . . . . . . . . . . . Crush . | . . . . . . . . . . . . . Escape Stasis . | . . . . . . . . . . . . . Rewire 1 | . . . . . . . . 1 . . . . Trap . | . . . . . . . . . . . . . Miscellaneous . | . . . . . . . . . . . . . Route ------- -11/Scrapyard -10/Materials (discovered 2 exits: [*Mat] / *Min) -10/Mines -10/Exiles -9/Mines -8/Materials -7/Factory -7/Lower Caves -7/Lower Caves -7/Data Miner -6/Proximity Caves -6/Factory (discovered 2 exits: *Fac / Low) -5/Factory History --------- Turn | Location | Event 15 | -11/Scrapyard | Discovered new exit (range 15) 81 | -11/Scrapyard | Entered Materials 180 | -10/Materials | Discovered new exit (range 16) 314 | -10/Materials | Identified exit to Mines 324 | -10/Materials | Build established: Mutant 328 | -10/Materials | Discovered new exit (range 15) 536 | -10/Materials | Entered Mines 536 | -10/Mines | Accompanied by 1 ally 587 | -10/Mines | Deemed a non-threat by the Exiles lab entrance 587 | -10/Mines | Discovered new exit (range 5) 595 | -10/Mines | Entered Exiles 595 | -10/Exiles | Accompanied by 1 ally 632 | -10/Exiles | Met 8R-AWN 658 | -10/Exiles | Met EX-HEX 709 | -10/Exiles | Met EX-BIN 731 | -10/Exiles | Aligned with FarCom system 733 | -10/Exiles | Given EX-Vault access code 863 | -10/Exiles | Opened EX-Vault 879 | -10/Exiles | Found XL Autogun Array 913 | -10/Exiles | Warned to stay clear of 0b10 Research branches 957 | -10/Exiles | Met EX-DEC 968 | -10/Exiles | Learned location of Zion (-6) 1139 | -10/Exiles | Discovered new exit (range 12) 1151 | -10/Exiles | Left Exiles lab with XL Autogun Array 1151 | -10/Exiles | Entered Mines 1151 | -9/Mines | Accompanied by 1 ally 1154 | -9/Mines | Met a Derelict who couldn't figure out how to use a Trap Extractor 1238 | -9/Mines | A weapon hastily lodged in a ceiling crevice suddenly fell to the ground 1348 | -9/Mines | Found a hidden stash of uninstalled traps 1551 | -9/Mines | Discovered new exit (range 4) 1556 | -9/Mines | Entered Materials 1556 | -8/Materials | Accompanied by 1 ally 1556 | -8/Materials | Evolved 4 slots: Propulsion x1, Utility x1, Weapon x2 1681 | -8/Materials | Lost 8 parts (1p3n1u3w) 1710 | -8/Materials | Found Prototype Device 1994 | -8/Materials | Build established: Scavenger-Skirmisher 2164 | -8/Materials | Discovered new exit (range 15) 2200 | -8/Materials | Identified exit to Factory 2228 | -8/Materials | Entered Factory 2228 | -7/Factory | Evolved 2 slots: Propulsion x1, Utility x1 2380 | -7/Factory | Discovered new exit (range 16) 2403 | -7/Factory | Identified exit to Lower Caves 2405 | -7/Factory | Entered Lower Caves 2488 | -7/Lower Caves | Learned 4 Factory zone layouts 2800 | -7/Lower Caves | Learned location of Extension (-6) 2888 | -7/Lower Caves | Attracted the attention of an 0b10 checkpoint 2942 | -7/Lower Caves | Destroyed 7 combat bots 3147 | -7/Lower Caves | Discovered new exit (range 11) 3162 | -7/Lower Caves | Identified exit to Lower Caves 3167 | -7/Lower Caves | Entered another Lower Caves area 3228 | -7/Lower Caves | Build established: Scavenger-Gunner 3440 | -7/Lower Caves | Learned Factory terminal intel 3606 | -7/Lower Caves | Learned location of 1 exit from Research 3606 | -7/Lower Caves | Learned 8 Research zone layouts 3739 | -7/Lower Caves | Attracted the attention of an 0b10 checkpoint 3999 | -7/Lower Caves | Discovered new exit (range 8) 4015 | -7/Lower Caves | Identified exit to Data Miner 4017 | -7/Lower Caves | Entered Data Miner 4017 | -7/Data Miner | Discovered new exit (range 6) 4024 | -7/Data Miner | Identified exit to Proximity Caves 4049 | -7/Data Miner | Met Data Miner 4089 | -7/Data Miner | Learned location of Section 7 (-3) 4089 | -7/Data Miner | Acquired the access code to Warlord's prototype stash 4104 | -7/Data Miner | Received God Mode back door access code from Data Miner 4143 | -7/Data Miner | Entered Proximity Caves 4239 | -6/Proximity Caves | Spotted B-75 Beast 4241 | -6/Proximity Caves | Escorted by Enhanced Grunt 4304 | -6/Proximity Caves | Destroyed B-75 Beast 4640 | -6/Proximity Caves | Destroyed 9 combat bots 4653 | -6/Proximity Caves | Learned 6 Upper Caves zone layouts 4653 | -6/Proximity Caves | Identified exit to Factory 4653 | -6/Proximity Caves | Learned Research trap positions 5015 | -6/Proximity Caves | Entered Factory 5015 | -6/Factory | Evolved 2 slots: Utility x2 5016 | -6/Factory | Identified exit to Lower Caves 5017 | -6/Factory | Loaded intel: 27 terminal locations 5063 | -6/Factory | Identified Active Sensor Suite 5151 | -6/Factory | Lost 3 parts (3n) 5326 | -6/Factory | Build established: Scavenger-Skirmisher 5356 | -6/Factory | Repaired Arm. Treads 5597 | -6/Factory | Incoming investigation squad redirected 6053 | -6/Factory | Discovered new exit (range 8) 6062 | -6/Factory | Identified exit to Factory 6063 | -6/Factory | Entered another Factory area 6063 | -5/Factory | Evolved 2 slots: Power x1, Utility x1 6105 | -5/Factory | Found Powered Armor 6518 | -5/Factory | Incoming investigation squad redirected 6538 | -5/Factory | Core integrity fell below 50% 6554 | -5/Factory | Lost 15 parts (2p4n4u5w) 6556 | -5/Factory | Core integrity fell below 20% 6561 | -5/Factory | Destroyed by P-70 Sage with High-powered Shock Rifle Last Messages --------------- 06522_ K-01 Serf collects debris. 06523_ Penetrated by Slug. 06523_ Flexi-carbon Leg destroyed. 06523_ Slug penetrates H-66 Slayer. 06525_ H-66 Slayer suffers critical hit (Burn). 06526_ Slug penetrates Wall. 06526_ Penetrated by Slug. 06526_ K-01 Serf collects debris. 06535_ Penetrated by Slug. 06536_ K-01 Serf collects debris. 06536_ Acquired 4 matter. 06537_ Penetrated by Slug. 06537_ Slug penetrates Earth. 06538_ Penetrated by Slug. 06539_ K-01 Serf collects debris. 06555_ Carbon-fiber Leg destroyed. 06559_ Chain reaction triggered in Lgt. Ion Engine. 06559_ U-05 Engineer destroyed. 06559_ Acquired 23 matter. 06560_ Acquired Terrain Scan Processor. Map ----- +----------------------------------------------------+ | #?????????????????? #???????????????????????? | | #########+######### #???????????????????????? | | #???????????????????????? | | #???????????????????????? | | #???????????????????????? | | = #???????????????????????? | | #???????????????????????? | | # #???????????????????????? | | # #???????????????????????? | | # # #???????????????????????? | | ###### +???????????????????????? | | ##???# #???????????????????????? | | ?????# #???????????????????????? | | ?????# #???????????????????????? | | ?????# ##### T## #???????????????????????? | | ?????# #???##### #???????????????????????? | | ???? #???????# #???????????????????????? | | ???# ####???????# #???????????????????????? | | ???# #??????????# #???????????????????????? | | ???+ #??????????# p #???????????????????????? | | ???# ???????????# #???????????????????????? | | ???? ##+???????????# #???????????????????????? | | ???????????????????# #??##???????????????????? | | ???????????????????# ###;##### #???????????? | | ???????????????????+ sssp p ????????????? | | ???????????????????# @ =;####????????????????? | | ???????????????????# ##???????????????????? | | ???????????????????# #????????????????????? | | ???????????????????#+#+######????????????????????? | | ?????????????????????????????????????????????????? | | ?????????????????????????????????????????????????? | | ?????????????????????????????????????????????????? | | ?????????????????????????????????????????????????? | | ?????????????????????????????????????????????????? | | ?????????????????????????????????????????????????? | | ?????????????????????????????????????????????????? | | ?????????????????????????????????????????????????? | | ?????????????????????????????????????????????????? | | ?????????????????????????????????????????????????? | | ?????????????????????????????????????????????????? | | ?????????????????????????????????????????????????? | | ?????????????????????????????????????????????????? | | ?????????????????????????????????????????????????? | | ?????????????????????????????????????????????????? | | ?????????????????????????????????????????????????? | | ?????????????????????????????????????????????????? | | ?????????????????????????????????????????????????? | | ?????????????????????????????????????????????????? | | ?????????????????????????????????????????????????? | | ?????????????????????????????????????????????????? | +----------------------------------------------------+ Best States ------------- Heat Dissipation 54 Energy Generation 27 Energy Capacity 265 Matter Stores 300 Matter Capacity 300 Sight Range 16 Robot Scan Range 20 Terrain Scan Density 10 Armor Coverage 150 Evasion (%) 55 Recoil Reduction 4 Matter Filtering 30 Item Schematics ----------------- Combat Drone Bay | -7/Data Miner | Free Lgt. Regenerative Plating | -7/Data Miner | Free Cld. Aerolev Unit | -7/Data Miner | Free Exp. Targeting Computer | -7/Data Miner | Free Cld. Plasma Cannon | -7/Data Miner | Free Antigrav System | -7/Data Miner | Free Imp. Shock Absorption System | -7/Data Miner | Free Wave Gun | -7/Data Miner | Free Imp. Cloaking Device | -7/Data Miner | Free Robot Schematics ------------------ M-14 Sweeper | -7/Data Miner | Free E-15 Imp | -7/Data Miner | Free B-48 Gladiator | -7/Data Miner | Free M-28 Smith | -7/Data Miner | Free S-27 Virus | -7/Data Miner | Free Fabricated ------------ Nothing Alien Tech Used ----------------- None Achievements -------------- None Challenges ------------ None Game ------ Seed HardenedStorageAccelerator Manual? 0 Play Time 01:25:40 Cumulative 55.9 hours Start 2022.05.20 @ 19:20:10 End 2022.05.20 @ 21:16:37 Sessions 1 Manual Loads 0 Difficulty Rogue Special Mode None Game No. 38 Rogue 19 Adventurer 16 Explorer 3 Win Type - Total 2 Types 2/0/0/0/0/0/0/0/0 Lore% 33 Gallery% 43 Achievement% 35 Wizard Run 0 Options --------- ASCII 1 Keyboard 1 Movement Numpad Keybinds 0 Fullscreen 1 Font 18/TerminusBold Map View 76x50 Tactical HUD 1 Map Filters NONE Filters NONE Steam X RUN: 55ce5186-fa8a-40e6-a41f-2880a2f32620